bitfinex/quotes_BTCUSD_20260315
["timestamp","ask_amount","ask_price","bid_price","bid_amount"]
[1773603193073,0.00030475,71524.0,71512.0,0.06991833]
[1773603193478,0.00030475,71524.0,71512.0,0.07011833]
[1773603196870,0.0701246,71527.0,71512.0,0.07011833]
[1773603197304,0.00022001,71529.0,71517.0,0.05865763]
[1773603197494,0.07012181,71529.0,71512.0,0.07011833]
[1773603197730,0.07012181,71529.0,71518.0,0.0014]
[1773603198728,0.07012181,71529.0,71519.0,0.12856912]
[1773603200108,0.00022001,71529.0,71519.0,0.12856912]
[1773603200549,0.07012207,71529.0,71519.0,0.12856912]
[1773603200706,0.00022001,71524.0,71519.0,0.12856912]
[1773603200906,0.00022001,71524.0,71519.0,0.06991149]
[1773603213357,1e-08,71530.0,71520.0,0.05865763]
[1773603215039,1e-08,71530.0,71521.0,0.06990953]
[1773603217013,1e-08,71530.0,71521.0,0.06999427]
[1773603217207,1e-08,71530.0,71521.0,0.07099427]
[1773603217864,1e-08,71530.0,71521.0,0.06999427]
[1773603221400,1e-08,71530.0,71521.0,0.07099427]
[1773603221812,1e-08,71530.0,71521.0,0.06999427]
[1773603222762,0.00022001,71535.0,71521.0,0.06999427]
[1773603222934,0.00022001,71535.0,71521.0,0.07234348]
[1773603224421,0.00022001,71535.0,71521.0,0.06999427]
[1773603229772,0.03479736,71535.0,71521.0,0.06999427]
[1773603231653,0.00022001,71535.0,71521.0,0.06999427]
[1773603231894,0.00022001,71538.0,71525.0,0.05865763]
[1773603232479,0.00022001,71538.0,71526.0,0.0014]
[1773603233755,0.00022001,71538.0,71527.0,0.06990367]
[1773603235097,0.00022001,71535.0,71527.0,0.06990367]
[1773603235430,0.00022001,71538.0,71527.0,0.06990367]
[1773603236958,0.00022001,71538.0,71528.0,0.05859882]
[1773603237183,0.00022001,71538.0,71527.0,0.06990367]
[1773603237807,0.00022001,71538.0,71528.0,0.03524469]
[1773603239201,0.00022001,71538.0,71529.0,0.06990171]
[1773603244883,0.00022001,71538.0,71529.0,0.10492446]
[1773603245920,0.00022001,71542.0,71530.0,0.03494948]
[1773603247031,0.00022001,71542.0,71531.0,0.10484924]
[1773603247265,0.00022001,71542.0,71532.0,0.0014]
[1773603247813,0.00022001,71542.0,71532.0,0.03627671]
[1773603249116,0.00022001,71542.0,71533.0,0.0698978]
[1773603249879,0.00022001,71538.0,71533.0,0.0698978]
[1773603250083,0.00022001,71538.0,71534.0,0.03480687]
[1773603251903,0.00022001,71538.0,71533.0,0.0698978]
[1773603252254,0.00056049,71543.0,71533.0,0.0698978]
[1773603252456,0.06987963,71552.0,71534.0,0.03602507]
[1773603252679,0.06988052,71551.0,71540.0,0.04126409]
[1773603253003,0.06987963,71552.0,71541.0,0.0014]
[1773603253257,0.000129,71554.0,71542.0,0.03462507]
[1773603254297,0.000129,71554.0,71543.0,0.06988803]
[1773603254518,5e-05,71557.0,71543.0,0.06988803]
[1773603254706,5e-05,71557.0,71543.0,0.1045518]
[1773603255417,0.00014971,71557.0,71543.0,0.1045518]
[1773603255805,0.00047835,71561.0,71547.0,0.01159851]
[1773603256014,0.06986111,71571.0,71547.0,0.01159851]
[1773603256015,0.00034926,71578.0,71552.0,0.03459293]
[1773603256204,0.00034926,71578.0,71561.0,0.10446339]
[1773603256205,0.00015,71574.0,71561.0,0.10446339]
[1773603256399,0.00015,71574.0,71562.0,0.0014]
[1773603256598,0.00015,71574.0,71562.0,0.03599293]
[1773603258277,0.00015,71574.0,71563.0,0.0698685]
[1773603258468,0.00015,71574.0,71564.0,0.03471579]
[1773603259280,0.0014,71573.0,71549.0,0.0698812]
[1773603259453,0.0014,71573.0,71550.0,0.05999882]
[1773603259657,0.0014,71573.0,71550.0,0.05859882]
[1773603259861,0.0014,71573.0,71551.0,0.0014]
[1773603260263,0.06985972,71572.0,71551.0,0.06988022]
[1773603260551,0.06985972,71572.0,71552.0,0.0014]
[1773603260796,0.06985972,71572.0,71551.0,0.06988022]
[1773603260988,0.06985972,71572.0,71553.0,0.0014]
[1773603261300,0.06985972,71572.0,71554.0,0.0014]
[1773603261596,0.06985972,71572.0,71551.0,0.06988022]
[1773603261793,0.06985972,71572.0,71552.0,0.0014]
[1773603262121,0.06985972,71572.0,71550.0,0.06988071]
[1773603262122,0.05859882,71570.0,71553.0,0.0014]
[1773603262437,0.06985972,71572.0,71553.0,0.0014]
[1773603262856,0.06985972,71572.0,71552.0,0.06987918]
[1773603263072,0.06985972,71572.0,71553.0,0.0014]
[1773603263557,0.06985972,71572.0,71550.0,0.06988071]
[1773603263759,0.06985972,71572.0,71551.0,0.07128022]
[1773603264196,0.06985972,71572.0,71552.0,0.0014]
[1773603264620,0.07007973,71572.0,71547.0,0.06998286]
[1773603264979,0.05859882,71570.0,71548.0,0.0014]
[1773603265178,0.00033106,71569.0,71547.0,9.971e-05]
[1773603265387,0.00033106,71569.0,71548.0,0.0014]
[1773603265588,0.00033106,71569.0,71547.0,9.971e-05]
[1773603265809,0.00033106,71569.0,71549.0,0.0014]
[1773603266207,0.00033106,71569.0,71547.0,9.971e-05]
[1773603266473,0.00033106,71569.0,71549.0,0.0014]
[1773603266692,0.00036896,71567.0,71547.0,9.971e-05]
[1773603266889,0.06986362,71568.0,71543.0,0.06988608]
[1773603266890,0.00036896,71565.0,71543.0,0.06988608]
[1773603267118,0.00036896,71564.0,71543.0,0.07128608]
[1773603267320,0.00036896,71564.0,71544.0,0.0014]
[1773603267734,0.00036896,71564.0,71543.0,0.06988608]
[1773603268021,0.00036896,71564.0,71544.0,0.0014]
[1773603268266,0.00036896,71564.0,71543.0,0.06988608]
[1773603268464,0.00036896,71564.0,71545.0,0.0014]
[1773603268848,0.0698685,71563.0,71546.0,0.0014]
[1773603269237,0.0698685,71563.0,71542.0,0.06988901]
[1773603269471,0.0698685,71563.0,71543.0,0.0014]
[1773603269683,0.0698685,71563.0,71541.0,0.06988922]
[1773603269842,0.0698685,71563.0,71544.0,0.0014]
[1773603271671,0.0698685,71563.0,71544.0,0.0016]
[1773603273361,0.0698685,71563.0,71545.0,0.0014]
[1773603273891,0.0698685,71563.0,71544.0,0.0002]
[1773603274086,0.0698685,71563.0,71545.0,0.0014]
[1773603274525,0.0698685,71563.0,71546.0,0.0014]
[1773603275016,0.0698685,71563.0,71547.0,0.03505372]
[1773603275627,0.0698685,71563.0,71537.0,0.03498537]
[1773603275628,0.05859882,71560.0,71537.0,0.03498537]
[1773603275793,0.05859882,71560.0,71538.0,0.0014]
[1773603275794,0.0014,71559.0,71538.0,0.0014]
[1773603275994,0.0014,71559.0,71539.0,0.0014]
[1773603276371,0.0014,71559.0,71537.0,0.11107448]
[1773603276590,0.0014,71559.0,71538.0,0.0014]
[1773603276995,0.0014,71559.0,71539.0,0.0014]
[1773603277395,0.0014,71559.0,71536.0,0.0700939]
[1773603277677,0.06987338,71558.0,71537.0,0.07129379]
[1773603277901,0.06987338,71558.0,71537.0,0.06989379]
[1773603278186,0.06987338,71558.0,71538.0,0.0014]
[1773603278410,0.06987338,71558.0,71537.0,0.06989379]
[1773603278616,0.06987338,71558.0,71538.0,0.0014]
[1773603278979,0.06987338,71558.0,71539.0,0.0014]
[1773603279183,0.06987338,71558.0,71534.0,0.03491738]
[1773603279448,0.06987338,71558.0,71535.0,0.0014]
[1773603279731,0.06987338,71558.0,71536.0,0.0016]
[1773603280033,0.06987338,71558.0,71536.0,0.0002]
[1773603280197,0.00131149,71557.0,71537.0,0.0014]
[1773603281720,0.06987534,71556.0,71536.0,0.07009482]
[1773603281881,0.00137541,71555.0,71537.0,0.0014]
[1773603282742,0.00137541,71555.0,71536.0,0.07009482]
[1773603282890,0.00137541,71555.0,71537.0,0.0014]
[1773603283087,0.05859882,71550.0,71537.0,0.0014]
[1773603283294,0.08601959,71549.0,71530.0,0.06990072]
[1773603283520,0.00123466,71548.0,71531.0,0.0014]
[1773603283919,0.06988315,71548.0,71532.0,0.0014]
[1773603284396,0.06988315,71548.0,71533.0,0.0014]
[1773603285014,0.06988315,71548.0,71534.0,0.0014]
[1773603285416,0.06988315,71548.0,71535.0,0.0014]
[1773603286549,0.06988315,71548.0,71532.0,0.06989878]
[1773603286750,0.06988315,71548.0,71533.0,0.0014]
[1773603286982,0.06988315,71548.0,71534.0,0.0014]
[1773603287187,0.06988315,71548.0,71531.0,0.10475974]
[1773603287341,0.06988315,71548.0,71537.0,0.0002]
[1773603289092,0.06988315,71548.0,71531.0,0.03486055]
[1773603289244,0.06988315,71548.0,71525.0,5e-05]
[1773603289245,0.05859882,71541.0,71525.0,5e-05]
[1773603289652,0.05859882,71541.0,71526.0,0.0014]
[1773603290188,0.06989097,71540.0,71526.0,0.0014]
[1773603290536,0.06989097,71540.0,71524.0,0.06990575]
[1773603290784,0.06989097,71540.0,71526.0,0.0014]
[1773603291199,0.06989097,71540.0,71523.0,0.03554131]
[1773603291418,0.06989097,71540.0,71524.0,0.06990616]
[1773603292305,0.06989097,71540.0,71525.0,0.0014]
[1773603292684,0.06989097,71540.0,71524.0,0.06990616]
[1773603292885,0.06989097,71540.0,71525.0,0.0014]
[1773603293084,0.06989097,71540.0,71525.0,0.07130533]
[1773603293665,0.06989097,71540.0,71527.0,0.06990365]
[1773603293873,0.06989097,71540.0,71529.0,0.03514041]
[1773603294304,0.06989097,71541.0,71529.0,0.03514041]
[1773603297726,0.06989097,71541.0,71529.0,0.03534041]
[1773603297910,0.06989097,71541.0,71529.0,0.03674041]
[1773603306889,0.0586136,71540.0,71529.0,0.0016]
[1773603307029,0.0586136,71540.0,71529.0,0.0002]
[1773603307234,0.06989194,71539.0,71529.0,0.0002]
[1773603308978,0.06989194,71539.0,71523.0,0.0002038]
[1773603309171,0.06989194,71539.0,71524.0,0.0014]
[1773603310022,0.06989194,71539.0,71523.0,0.0002038]
[1773603310222,0.06989194,71539.0,71523.0,0.0016038]
[1773603310781,0.06989194,71539.0,71523.0,0.07151065]
[1773603311573,0.06995668,71539.0,71523.0,0.0016038]
[1773603312886,0.06995668,71539.0,71514.0,0.11267007]
[1773603312887,0.0586136,71533.0,71514.0,0.11267007]
[1773603313117,0.0586136,71533.0,71515.0,0.00145]
[1773603313118,0.0014,71532.0,71515.0,0.00145]
[1773603313899,0.06989976,71531.0,71515.0,0.0016]
[1773603314106,0.06989976,71531.0,71516.0,0.0014]
[1773603314482,0.06989976,71531.0,71515.0,0.0016]
[1773603315967,0.06989976,71531.0,71516.0,0.03438453]
[1773603316823,0.06989976,71531.0,71516.0,0.0342364]
[1773603321486,0.06989976,71531.0,71516.0,0.0344364]
[1773603325206,0.06989976,71531.0,71516.0,0.0002]
[1773603325627,0.0586136,71530.0,71516.0,0.0002]
[1773603326871,0.06990171,71529.0,71516.0,0.0002]
[1773603328500,0.06990171,71529.0,71515.0,0.0002]
[1773603329109,0.06990171,71529.0,71516.0,0.0002]
[1773603330624,0.06990171,71529.0,71516.0,5.19e-05]
[1773603335775,0.06990171,71529.0,71515.0,0.0002]
[1773603335776,0.06990171,71529.0,71515.0,1e-08]
[1773603336027,0.07090171,71529.0,71515.0,1e-08]
[1773603336468,0.0586136,71525.0,71511.0,1e-08]
[1773603336680,0.0586136,71521.0,71506.0,0.0002]
[1773603337249,0.06991051,71520.0,71506.0,0.0002]
[1773603338377,0.08089322,71519.0,71501.0,0.0002]
[1773603338512,0.0014,71518.0,71501.0,0.0002]
[1773603339595,0.06991344,71517.0,71504.0,5.189e-05]
[1773603340606,0.06991344,71517.0,71497.0,0.033652]
[1773603340607,0.0586136,71510.0,71497.0,0.033652]
[1773603340781,0.06991344,71517.0,71497.0,0.03373674]
[1773603340782,0.0014,71509.0,71497.0,0.03373674]
[1773603340960,0.0014,71508.0,71497.0,0.03373674]
[1773603341167,0.0014,71507.0,71497.0,0.03373674]
[1773603341573,0.0699242,71506.0,71497.0,0.03373674]
[1773603342371,0.0699242,71506.0,71491.0,0.06993887]
[1773603342566,0.0699242,71506.0,71492.0,0.03275195]
[1773603342776,0.0295778,71506.0,71494.0,0.03275195]
[1773603342982,0.0014,71505.0,71494.0,0.03275195]
[1773603343155,0.018929,71507.0,71494.0,0.03275195]
[1773603343362,0.0699242,71506.0,71494.0,0.03275195]
[1773603343615,0.018929,71507.0,71504.0,0.0002]
[1773603343616,0.0014,71507.0,71504.0,0.0002]
[1773603344646,0.0014,71507.0,71504.0,5.189e-05]
[1773603346007,0.0699242,71506.0,71504.0,5.189e-05]
[1773603357213,0.07014421,71506.0,71504.0,5.189e-05]
[1773603372261,0.03251873,71512.0,71504.0,5.189e-05]
[1773603372262,0.07017972,71521.0,71506.0,0.0699242]
[1773603372460,0.06990577,71525.0,71510.0,0.05866842]
[1773603372693,0.06990577,71525.0,71511.0,0.03489314]
[1773603372827,0.0014,71524.0,71511.0,0.03489314]
[1773603375259,0.0014,71523.0,71512.0,0.10481147]
[1773603375459,0.0014,71523.0,71513.0,0.03489314]
[1773603376210,0.0014,71523.0,71512.0,0.06991833]
[1773603378254,0.06990855,71522.0,71511.0,0.06991931]
[1773603378584,0.06990855,71522.0,71508.0,0.06992144]
[1773603381300,0.06990855,71522.0,71507.0,0.06992247]
[1773603383269,0.06990855,71522.0,71507.0,0.07012247]
[1773603392794,0.06990855,71522.0,71505.0,0.03563362]
[1773603392996,0.03295157,71519.0,71504.0,0.07137758]
[1773603393689,0.03295157,71519.0,71504.0,0.06997758]
[1773603394308,0.10286403,71518.0,71504.0,5.189e-05]
[1773603394651,0.0014,71517.0,71504.0,5.189e-05]
[1773603396189,0.06991442,71516.0,71504.0,5.189e-05]
[1773603401355,0.06991442,71516.0,71504.0,0.11147175]
[1773603405045,0.06991442,71516.0,71505.0,0.06992518]
[1773603410308,0.03295157,71515.0,71504.0,5.189e-05]
[1773603410457,0.03295157,71515.0,71505.0,0.0002]
[1773603412243,0.06991638,71514.0,71505.0,0.0002]
[1773603416895,0.10250336,71514.0,71508.0,1.0]
[1773603417463,0.03258698,71514.0,71508.0,1.0]
[1773603417816,0.03258698,71514.0,71508.0,0.94226774]
[1773603418246,0.03258698,71514.0,71508.0,0.88502766]
[1773603418845,0.03258698,71514.0,71508.0,0.7436729]
[1773603419050,0.10250433,71513.0,71508.0,0.7436729]
[1773603419462,0.03258698,71512.0,71508.0,0.7436729]
[1773603419664,0.0014,71511.0,71508.0,0.7436729]
[1773603420987,0.06992029,71510.0,71508.0,0.7436729]
[1773603421947,0.06992029,71510.0,71508.0,0.63342139]
[1773603430046,0.06992029,71510.0,71508.0,0.57657426]
[1773603430248,0.06992029,71510.0,71508.0,0.49031829]
[1773603432894,0.06992029,71510.0,71508.0,0.34708493]
[1773603435892,0.06960297,71510.0,71508.0,0.34708493]
[1773603437746,0.06960297,71510.0,71508.0,0.29021352]
[1773603437954,0.06982298,71510.0,71508.0,0.29021352]
[1773603450139,0.07082298,71510.0,71508.0,0.29021352]
[1773603450437,0.07182298,71510.0,71508.0,0.29021352]
[1773603450658,0.07082298,71510.0,71508.0,0.29021352]
[1773603451048,0.07182298,71510.0,71508.0,0.29021352]
[1773603451341,0.07082298,71510.0,71508.0,0.29021352]
[1773603451546,0.06982298,71510.0,71508.0,0.29021352]
[1773603451903,0.01769951,71510.0,71508.0,0.29021352]
[1773603452095,0.00022001,71518.0,71508.0,0.29021352]
[1773603452096,0.06990953,71521.0,71509.0,0.03558395]
[1773603452296,0.06990953,71521.0,71511.0,0.03558395]
[1773603453095,0.0014,71520.0,71511.0,0.03558395]
[1773603453496,0.06990953,71521.0,71511.0,0.03558395]
[1773603453701,0.0014,71520.0,71511.0,0.03558395]
[1773603453900,0.06990953,71521.0,71511.0,0.03558395]
[1773603453901,0.0014,71519.0,71511.0,0.03558395]
[1773603455318,0.06990953,71521.0,71511.0,0.03558395]
[1773603455517,0.0014,71520.0,71511.0,0.03558395]
[1773603455942,0.0014,71519.0,71511.0,0.03558395]
[1773603456719,0.0014,71519.0,71508.0,0.24132944]
[1773603456933,0.07012954,71521.0,71509.0,0.03558395]
[1773603457135,0.0014,71519.0,71509.0,0.03558395]
[1773603458120,0.0014,71519.0,71508.0,0.17140753]
[1773603458466,0.03574444,71521.0,71509.0,0.06992126]
[1773603458780,0.03574444,71521.0,71508.0,0.17140753]
[1773603459015,0.03568297,71520.0,71508.0,0.17140753]
[1773603459918,0.06991149,71519.0,71508.0,0.17140753]
[1773603460072,0.07131149,71519.0,71508.0,0.17140753]
[1773603461493,0.06991149,71519.0,71508.0,0.17140753]
[1773603461695,0.06991149,71520.0,71510.0,0.03558395]
[1773603462585,0.06991149,71520.0,71508.0,0.17140753]
[1773603463272,0.0014,71519.0,71508.0,0.17140753]
[1773603463700,0.0014,71519.0,71508.0,0.24132971]
[1773603464324,0.0014,71518.0,71508.0,0.24132971]
[1773603464674,0.06991149,71520.0,71508.0,0.24132971]
[1773603464882,0.0014,71518.0,71508.0,0.24132971]
[1773603465487,0.0014,71518.0,71508.0,0.17140753]
[1773603465687,0.06991149,71520.0,71508.0,0.17140753]
[1773603465889,0.0017894,71518.0,71508.0,0.17140753]
[1773603466274,0.06991344,71517.0,71508.0,0.17140753]
[1773603466732,0.07030284,71517.0,71508.0,0.17140753]
[1773603472954,0.07030284,71517.0,71508.0,0.24132887]
[1773603473368,0.07170284,71517.0,71508.0,0.24132887]
[1773603473772,0.07030284,71517.0,71508.0,0.24132887]
[1773603474021,0.07170284,71517.0,71508.0,0.24132887]
[1773603475852,0.07030284,71517.0,71508.0,0.17140753]
[1773603480577,0.10773193,71517.0,71508.0,0.17140753]
[1773603481167,0.07030284,71517.0,71508.0,0.17140753]
[1773603486850,0.03742909,71516.0,71500.0,0.00025]
[1773603487054,0.03742909,71509.0,71490.0,0.06998967]
[1773603487263,0.03742909,71507.0,71496.0,0.00035708]
[1773603487440,0.05864295,71510.0,71496.0,0.00035708]
[1773603487441,0.03742909,71505.0,71496.0,0.00035708]
[1773603488074,0.03756249,71505.0,71496.0,0.00035708]
[1773603488993,0.10735524,71504.0,71496.0,0.00035708]
[1773603490036,0.10735524,71504.0,71493.0,0.06993628]
[1773603490037,0.03742909,71503.0,71485.0,0.06999472]
[1773603490252,0.03778518,71503.0,71485.0,0.06999472]
[1773603490672,0.03778518,71503.0,71485.0,5e-05]
[1773603490873,0.03742909,71501.0,71481.0,0.0014]
[1773603491077,0.03742909,71499.0,71481.0,0.0014]
[1773603491586,0.03742909,71499.0,71485.0,0.0002]
[1773603492413,0.03742909,71499.0,71480.0,5e-05]
[1773603492957,0.03742909,71497.0,71478.0,0.07007419]
[1773603493154,0.03742909,71497.0,71478.0,0.0001226]
[1773603494855,0.03742909,71497.0,71471.0,0.000128]
[1773603494856,0.0699418,71488.0,71471.0,0.000128]
[1773603494985,0.03882909,71487.0,71471.0,0.000128]
[1773603497042,0.03742909,71485.0,71471.0,0.000128]
[1773603498887,0.03742909,71485.0,71478.0,0.0002]
[1773603499098,0.03742909,71485.0,71471.0,0.000128]
[1773603499099,0.03742909,71483.0,71471.0,0.000128]
[1773603499294,0.06994572,71484.0,71471.0,0.000128]
[1773603499295,0.03742909,71480.0,71471.0,0.000128]
[1773603499544,0.05864295,71481.0,71471.0,0.000128]
[1773603499545,0.03882909,71479.0,71471.0,0.000128]
[1773603500363,0.0014,71479.0,71471.0,0.000128]
[1773603500710,0.00175609,71479.0,71471.0,0.000128]
[1773603501095,0.06995159,71478.0,71471.0,0.000128]
[1773603505968,0.06995159,71478.0,71471.0,0.000328]
[1773603509678,0.00175609,71479.0,71471.0,0.000328]
[1773603509880,0.0014,71488.0,71472.0,0.03753444]
[1773603510044,0.06994278,71487.0,71473.0,0.06995648]
[1773603510243,0.07134278,71487.0,71474.0,0.03613444]
[1773603511725,0.06994278,71487.0,71474.0,0.03613444]
[1773603511930,0.07134278,71487.0,71474.0,0.03613444]
[1773603512154,0.07134278,71487.0,71476.0,0.03613444]
[1773603514206,0.07134278,71487.0,71476.0,0.10608709]
[1773603514723,0.07134278,71487.0,71477.0,0.03613444]
[1773603517786,0.06994278,71487.0,71477.0,0.1060863]
[1773603518030,0.07134278,71487.0,71477.0,0.1060863]
[1773603518447,0.06993659,71494.0,71477.0,0.1060863]
[1773603518625,0.0014,71493.0,71477.0,0.1060863]
[1773603519046,0.0014,71492.0,71477.0,0.1060863]
[1773603519446,0.06993659,71494.0,71477.0,0.1060863]
[1773603519669,0.0014,71491.0,71477.0,0.1060863]
[1773603519970,0.00022001,71487.0,71477.0,0.1060863]
[1773603520667,0.07134376,71486.0,71477.0,0.1060863]
[1773603521432,0.06994376,71486.0,71477.0,0.1060863]
[1773603521637,0.07134376,71486.0,71477.0,0.1060863]
[1773603521866,0.06994376,71486.0,71477.0,0.1060863]
[1773603522066,0.07134376,71486.0,71477.0,0.1060863]
[1773603522850,0.06994376,71486.0,71477.0,0.1060863]
[1773603523185,0.07134376,71486.0,71477.0,0.1060863]
[1773603527683,0.07015506,71495.0,71478.0,0.03613444]
[1773603527806,0.07015506,71495.0,71480.0,0.05864295]
[1773603528012,0.0014,71494.0,71481.0,0.03613444]
[1773603528519,0.07015533,71495.0,71481.0,0.03613444]
[1773603528721,0.0014,71494.0,71481.0,0.03613444]
[1773603529164,0.07015533,71495.0,71481.0,0.03613444]
[1773603529620,0.07155533,71495.0,71481.0,0.03613444]
[1773603529977,0.07155533,71495.0,71482.0,0.10608211]
[1773603530398,0.0014,71494.0,71482.0,0.10608211]
[1773603532631,0.06993691,71493.0,71482.0,0.10608211]
[1773603543040,0.06993691,71493.0,71482.0,0.06994767]
[1773603546520,0.06975907,71493.0,71482.0,0.06994767]
[1773603553006,0.000128,71496.0,71483.0,0.03775469]
[1773603553200,0.0014,71499.0,71489.0,0.09643518]
[1773603553904,0.0014,71499.0,71489.0,0.03775469]
[1773603554266,0.0014,71499.0,71486.0,0.0014]
[1773603555180,0.06993202,71498.0,71487.0,0.06994278]
[1773603566456,0.00162001,71499.0,71487.0,0.06994278]
[1773603566688,0.07155109,71499.0,71488.0,0.03569378]
[1773603567386,0.00022001,71498.0,71488.0,0.03569378]
[1773603568592,0.00022001,71498.0,71489.0,0.06994083]
[1773603572982,0.00022001,71498.0,71488.0,0.02383437]
[1773603573154,0.00022001,71498.0,71489.0,0.06994083]
[1773603573558,0.02411485,71503.0,71492.0,0.03569378]
[1773603574122,0.02411485,71503.0,71491.0,0.05367103]
[1773603574266,0.02411485,71503.0,71489.0,0.06994083]
[1773603576273,0.02433486,71503.0,71489.0,0.06994083]
[1773603580608,0.05966475,71503.0,71489.0,0.06994083]
[1773603582390,0.03532989,71502.0,71487.0,0.0002]
[1773603582578,0.02433486,71503.0,71485.0,0.07007218]
[1773603582579,0.03532989,71499.0,71485.0,0.07007218]
[1773603582784,0.03532989,71499.0,71485.0,0.000128]
[1773603583168,0.0014,71498.0,71485.0,0.000128]
[1773603583494,0.03532989,71497.0,71485.0,0.07007222]
[1773603584483,0.03532989,71495.0,71485.0,0.000128]
[1773603586871,0.10526582,71494.0,71485.0,0.000128]
[1773603592149,0.10526582,71494.0,71485.0,0.000328]
[1773603592425,0.10548583,71494.0,71485.0,0.000328]
[1773603592880,0.03971481,71493.0,71485.0,0.000328]
[1773603593427,0.06993789,71492.0,71485.0,0.07027246]
[1773603598775,0.06993765,71493.0,71485.0,0.07027246]
[1773603599286,0.07015637,71494.0,71485.0,0.07027246]
[1773603600389,0.02115819,71494.0,71485.0,0.07027246]
[1773603601410,0.0213782,71494.0,71485.0,0.07027246]
[1773603634039,0.07132606,71505.0,71486.0,0.03639612]
[1773603634197,0.07132606,71505.0,71485.0,0.07027246]
[1773603634198,0.06992628,71504.0,71491.0,0.03639612]
[1773603634396,0.07014397,71507.0,71491.0,0.03639612]
[1773603634582,0.0014,71504.0,71491.0,0.03639612]
[1773603634986,0.07132659,71504.0,71491.0,0.03639612]
[1773603635215,0.0014,71504.0,71491.0,0.03639612]
[1773603635368,0.06992453,71506.0,71491.0,0.03639612]
[1773603635580,0.0014,71504.0,71491.0,0.03639612]
[1773603636053,0.0014,71505.0,71492.0,0.06993789]
[1773603636233,0.0713253,71505.0,71492.0,0.06993789]
[1773603636408,0.0699253,71505.0,71492.0,0.06993789]
[1773603636605,0.0713253,71505.0,71492.0,0.06993789]
[1773603637419,0.0699253,71505.0,71492.0,0.06993789]
[1773603637616,0.0713253,71505.0,71492.0,0.06993789]
[1773603638444,0.0699253,71505.0,71492.0,0.06993789]
[1773603638621,0.0713253,71505.0,71492.0,0.06993789]
[1773603638822,0.0699253,71505.0,71492.0,0.06993789]
[1773603639018,0.0713253,71505.0,71492.0,0.06993789]
[1773603640175,0.1088376,71505.0,71492.0,0.06993789]
[1773603642158,0.0699263,71504.0,71492.0,0.06993789]
[1773603643784,0.0699263,71504.0,71487.0,0.03779612]
[1773603643785,0.0375123,71501.0,71486.0,0.06994313]
[1773603644189,0.0375123,71499.0,71486.0,0.07154313]
[1773603644804,0.0375123,71499.0,71487.0,0.0014]
[1773603646123,0.06993202,71498.0,71486.0,0.07014313]
[1773603646372,0.10744432,71498.0,71487.0,0.0014]
[1773603646666,0.0375123,71497.0,71486.0,0.07014313]
[1773603646867,0.0375123,71497.0,71487.0,0.0014]
[1773603650078,0.06993045,71500.0,71488.0,0.0699418]
[1773603650428,0.10744275,71500.0,71488.0,0.0699418]
[1773603650832,0.0375123,71499.0,71488.0,0.0699418]
[1773603653189,0.10744388,71499.0,71488.0,0.0699418]
[1773603659642,0.10766389,71499.0,71488.0,0.0699418]
[1773603661347,0.10766389,71499.0,71487.0,0.0014]
[1773603661553,0.00022001,71502.0,71489.0,0.05867784]
[1773603661753,0.07154358,71507.0,71490.0,0.03909957]
[1773603662346,0.0014,71506.0,71490.0,0.03909957]
[1773603663214,0.0014,71506.0,71490.0,0.04009957]
[1773603663371,0.0014,71506.0,71490.0,0.03909957]
[1773603663776,0.07132498,71506.0,71491.0,0.06993887]
[1773603668075,0.07132498,71506.0,71491.0,0.07013887]
[1773603668350,0.07154499,71506.0,71491.0,0.07013887]
[1773603668692,0.04027589,71505.0,71491.0,0.07013887]
[1773603670870,0.04027589,71503.0,71491.0,0.07013887]
[1773603671073,0.04027589,71503.0,71491.0,0.0002]
[1773603671688,0.04027589,71503.0,71491.0,0.07013871]
[1773603673322,0.04027589,71501.0,71491.0,0.07013871]
[1773603673503,0.04167589,71500.0,71491.0,0.07013871]
[1773603676579,0.06993104,71499.0,71491.0,0.07013871]
[1773603677885,0.04027589,71498.0,71486.0,0.0002]
[1773603679185,0.069933,71497.0,71486.0,0.0002]
[1773603679389,0.11020889,71497.0,71486.0,0.0002]
[1773603681496,0.069933,71497.0,71486.0,0.0002]
[1773603681696,0.04027589,71496.0,71486.0,0.0002]
[1773603683246,0.07015301,71497.0,71486.0,0.0002]
[1773603707612,0.10850732,71497.0,71486.0,0.0002]
[1773603710687,0.10850732,71497.0,71483.0,0.0014]
[1773603711435,0.10850732,71497.0,71486.0,0.0002]
[1773603723077,0.07015301,71497.0,71486.0,0.0002]
[1773603724995,0.07015301,71497.0,71482.0,0.06994688]
[1773603727149,0.10942929,71497.0,71482.0,0.06994688]
[1773603727357,0.03927628,71496.0,71482.0,0.06994688]
[1773603730074,0.06993496,71495.0,71482.0,0.06994688]
[1773603740228,0.05396698,71495.0,71482.0,0.06994688]
[1773603740977,0.09324326,71495.0,71482.0,0.06994688]
[1773603741200,0.04067628,71494.0,71481.0,0.07134865]
[1773603742022,0.06993691,71493.0,71481.0,0.07134865]
[1773603742426,0.06993691,71493.0,71481.0,0.06994865]
[1773603743395,0.04055605,71492.0,71480.0,0.0002]
[1773603743893,0.05868683,71490.0,71480.0,0.0002]
[1773603744066,0.04055605,71489.0,71480.0,0.0002]
[1773603744224,0.0699418,71488.0,71480.0,0.0002]
[1773603744421,0.11049785,71488.0,71480.0,0.0002]
[1773603746228,0.11049785,71488.0,71476.0,0.0002]
[1773603746229,0.0002,71480.0,71460.0,0.06981897]
[1773603746462,0.04195605,71479.0,71460.0,0.07017506]
[1773603746683,0.0014,71478.0,71461.0,0.0014]
[1773603746843,0.04195605,71478.0,71461.0,0.0014]
[1773603747479,0.06995257,71477.0,71462.0,0.06996725]
[1773603747677,0.11050862,71477.0,71462.0,0.06996725]
[1773603747934,0.04055605,71476.0,71460.0,0.00035609]
[1773603749989,0.04055605,71474.0,71461.0,0.0002]
[1773603752091,0.04055605,71472.0,71461.0,0.0002]
[1773603752291,0.04055605,71470.0,71461.0,0.0002]
[1773603753487,0.04055605,71470.0,71457.0,0.000333]
[1773603753815,0.04055605,71470.0,71457.0,0.00039781]
[1773603754117,0.04055605,71468.0,71457.0,0.00039781]
[1773603756089,0.06996236,71467.0,71457.0,0.00039781]
[1773603756292,0.04055605,71466.0,71457.0,0.00039781]
[1773603756492,0.0014,71465.0,71457.0,0.00039781]
[1773603757067,0.04195605,71465.0,71457.0,0.00039781]
[1773603757208,0.04195605,71465.0,71453.0,0.0002]
[1773603757421,0.04195605,71465.0,71453.0,0.00026488]
[1773603758387,0.06996529,71464.0,71453.0,0.00026488]
[1773603760217,0.11052134,71464.0,71453.0,0.00026488]
[1773603762189,0.04055605,71463.0,71449.0,0.000345]
[1773603762352,0.0001068,71463.0,71448.0,0.0416977]
[1773603762554,0.0014,71462.0,71448.0,0.0416977]
[1773603762754,0.0014,71462.0,71448.0,0.0430977]
[1773603764006,0.06996823,71461.0,71449.0,0.06997998]
[1773603764222,0.06996823,71461.0,71449.0,0.11167768]